fUST/lending_fUST_20250110
["ID","MTS","AMOUNT","RATE_DAILY","PERIOD"]
[348394479,1736503841610,-500.0,0.00021905,2]
[348394481,1736503841618,-322.69584962,0.00021905,2]
[348394686,1736503843583,-177.30415038,0.00021905,2]
[348394688,1736503843592,-500.0,0.00021905,2]
[348394690,1736503843602,-233.03231368,0.00021905,2]
[348394700,1736503843697,-266.96768632,0.00021905,2]
[348394702,1736503843707,-500.0,0.00021905,2]
[348394704,1736503843716,-500.0,0.00021905,2]
[348394706,1736503843725,-500.0,0.00021905,2]
[348394708,1736503843735,-500.0,0.00021905,2]
[348394710,1736503843744,-300.0,0.00021906,2]
[348394712,1736503843753,-5337.0,0.00021906,2]
[348394714,1736503843762,-170.023,0.00021908,2]
[348394716,1736503843771,-1005.31142274,0.00021911,2]
[348394718,1736503843781,-6750.46706287,0.00021917,5]
[348394720,1736503843790,-2680.78744911,0.00021917,5]
[348394722,1736503843799,-154.54,0.00021917,2]
[348394724,1736503843810,-319.49136549,0.00021917,3]
[348394726,1736503843819,-500.0,0.00021917,3]
[348394728,1736503843829,-590.22127176,0.00021917,3]
[348394730,1736503843838,-501.86195945,0.00021917,3]
[348394732,1736503843848,-505.51149338,0.00021917,3]
[348394734,1736503843857,-500.0,0.00021917,3]
[348394736,1736503843866,-151.0,0.00021917,2]
[348394738,1736503843876,-151.0,0.00021917,2]
[348394740,1736503843885,-151.0,0.00021917,2]
[348394742,1736503843894,-427.40110164,0.00021917,3]
[348394744,1736503843904,-421.76138539,0.00021917,3]
[348394746,1736503843914,-189.29730657,0.00021917,2]
[348394748,1736503843924,-151.274631,0.00021917,2]
[348394750,1736503843933,-504.47663405,0.00021917,3]
[348394752,1736503843943,-504.7779249,0.00021917,3]
[348394754,1736503843952,-501.31552342,0.00021917,3]
[348394756,1736503843962,-500.0,0.00021917,3]
[348394758,1736503843971,-500.0,0.00021917,3]
[348394768,1736503844060,-500.0,0.00021917,3]
[348394770,1736503844071,-500.0,0.00021917,3]
[348394772,1736503844080,-500.0,0.00021917,3]
[348394774,1736503844089,-500.0,0.00021917,3]
[348394776,1736503844099,-503.16985988,0.00021917,3]
[348394778,1736503844108,-500.0,0.00021917,3]
[348394780,1736503844117,-500.0,0.00021917,3]
[348394782,1736503844126,-550.66721148,0.00021917,3]
[348394784,1736503844135,-500.0,0.00021917,3]
[348394786,1736503844144,-500.0,0.00021917,3]
[348394788,1736503844153,-1000.0,0.00021917,3]
[348394790,1736503844163,-500.0,0.00021917,3]
[348394792,1736503844172,-500.0,0.00021917,3]
[348394794,1736503844182,-500.0,0.00021917,3]
[348394796,1736503844192,-500.0,0.00021917,3]
[348394798,1736503844201,-500.0,0.00021917,3]
[348394800,1736503844210,-500.0,0.00021917,3]
[348394802,1736503844220,-500.0,0.00021917,3]
[348394804,1736503844229,-500.0,0.00021917,3]
[348394806,1736503844238,-500.0,0.00021917,3]
[348394808,1736503844248,-500.0,0.00021917,2]
[348394810,1736503844257,-500.0,0.00021917,3]
[348394812,1736503844267,-500.0,0.00021917,3]
[348394814,1736503844276,-500.0,0.00021917,3]
[348394816,1736503844285,-151.0,0.00021917,2]
[348394818,1736503844294,-230.081618,0.00021917,2]
[348394820,1736503844303,-503.90260077,0.00021917,3]
[348394822,1736503844312,-445.35246846,0.00021917,3]
[348394824,1736503844321,-500.0,0.00021917,3]
[348394826,1736503844331,-500.0,0.00021917,3]
[348394828,1736503844340,-500.0,0.00021917,3]
[348394830,1736503844350,-500.0,0.00021917,3]
[348394832,1736503844359,-500.0,0.00021917,3]
[348394834,1736503844368,-204.6799111,0.00021917,3]
[348394836,1736503844377,-504.55567194,0.00021917,3]
[348394838,1736503844387,-500.98984731,0.00021917,3]
[348394840,1736503844396,-500.0,0.00021917,3]
[348394842,1736503844405,-500.0,0.00021917,3]
[348394844,1736503844414,-500.0,0.00021917,3]
[348394846,1736503844424,-500.0,0.00021917,3]
[348394848,1736503844434,-503.22,0.00021917,3]
[348394850,1736503844444,-500.0,0.00021917,3]
[348394852,1736503844454,-269.10653884,0.00021917,3]
[348394854,1736503844463,-500.0,0.00021917,3]
[348394856,1736503844472,-500.0,0.00021917,3]
[348394858,1736503844481,-500.0,0.00021917,3]
[348394860,1736503844490,-500.0,0.00021917,3]
[348394862,1736503844499,-502.59880532,0.00021917,3]
[348394864,1736503844508,-500.0,0.00021917,3]
[348394866,1736503844518,-500.0,0.00021917,3]
[348394868,1736503844527,-500.0,0.00021917,3]
[348394870,1736503844536,-500.0,0.00021917,3]
[348394872,1736503844546,-500.0,0.00021917,3]
[348394874,1736503844555,-605.20644062,0.00021917,3]
[348394876,1736503844565,-500.0,0.00021917,3]
[348394878,1736503844574,-506.36165285,0.00021917,3]
[348394880,1736503844583,-500.0,0.00021917,3]
[348394882,1736503844592,-500.0,0.00021917,3]
[348394884,1736503844600,-501.11104097,0.00021917,3]
[348394886,1736503844610,-500.0,0.00021917,3]
[348394888,1736503844620,-502.06048974,0.00021917,3]
[348394890,1736503844631,-500.0,0.00021917,3]
[348394892,1736503844640,-504.55548237,0.00021917,3]
[348394894,1736503844649,-500.0,0.00021917,3]
[348394896,1736503844659,-202.61046024,0.00021917,3]
[348394898,1736503844668,-500.0,0.00021917,3]
[348394900,1736503844678,-504.78614931,0.00021917,3]
[348394902,1736503844691,-500.0,0.00021917,3]
[348394904,1736503844700,-500.0,0.00021917,3]
[348394906,1736503844710,-500.0,0.00021917,3]
[348394908,1736503844719,-502.01950925,0.00021917,3]
[348394910,1736503844728,-500.0,0.00021917,3]
[348394912,1736503844737,-506.38755962,0.00021917,3]
[348394914,1736503844747,-506.02037021,0.00021917,3]
[348394916,1736503844756,-442.85011736,0.00021917,3]
[348397000,1736504392398,179.198835,0.00013973,2]
[348397002,1736504825137,-150.0,0.00018847,2]
[348397003,1736504825164,-150.0,0.00019037,2]
[348397004,1736504825184,-150.0,0.00019817,2]
[348397005,1736504825207,-267.34063108,0.00019847,2]
[348397006,1736504827613,-250.9026924,0.00019847,2]
[348397007,1736504831115,-208.52899622,0.00019649,2]
[348397008,1736504831138,-208.52899622,0.00019847,2]
[348397009,1736504831165,-452.345744,0.00020141,2]
[348397010,1736504831188,-179.198835,0.00020447,2]
[348397011,1736504831211,-164.051294,0.00020642,2]
[348397012,1736504831234,-664.621,0.0002082,2]
[348397013,1736504831257,-300.0,0.00020915,2]
[348397014,1736504831279,-154.55,0.00020916,2]
[348397015,1736504831304,-398.92505087,0.00020916,2]
[348397016,1736504831326,-500.0,0.00020916,2]
[348397017,1736504831347,-253.79214769,0.00020916,2]
[348397018,1736504831369,-500.0,0.00020916,2]
[348397019,1736504831393,-500.0,0.00020916,2]
[348397020,1736504831419,-500.0,0.00020916,2]
[348397021,1736504831443,-500.0,0.00020916,2]
[348397022,1736504831465,-212.63616075,0.00020916,2]
[348397023,1736504831489,-500.0,0.00020916,2]
[348397024,1736504831513,-579.76984298,0.00020916,2]
[348397025,1736504831538,-500.0,0.00020916,2]
[348397026,1736504831563,-551.91318401,0.00020916,2]
[348397027,1736504831586,-500.0,0.00020916,2]
[348397028,1736504831611,-500.0,0.00020916,2]
[348397029,1736504831635,-500.0,0.00020916,2]
[348397030,1736504831659,-500.0,0.00020916,2]
[348397031,1736504831683,-500.0,0.00020916,2]
[348397032,1736504831707,-500.0,0.00020916,2]
[348397033,1736504831728,-182.809,0.00020916,2]
[348397034,1736504831751,-3587.44532714,0.00020917,2]
[348397038,1736504953114,-467.52949853,0.00016,2]
[348397039,1736504953137,-2774.59470147,0.00017,7]
[348397040,1736504953164,-104.12721725,0.00017,7]
[348397070,1736505032024,404.48052468,0.00018426,2]
[348397077,1736505032082,-404.48052468,0.00018612,2]
[348397079,1736505032093,-404.48052468,0.000188,2]
[348397081,1736505032103,-300.0,0.00019999,2]
[348397083,1736505032114,-991.27751154,0.0002,2]
[348397086,1736505032127,-1215.55179416,0.0002,2]
[348397088,1736505032141,-8712.35115123,0.0002,2]
[348397090,1736505032152,-552.57800335,0.00020146,2]
[348397092,1736505032162,-638.82297003,0.00020146,2]
[348397095,1736505032173,-500.0,0.00020146,2]
[348397097,1736505032184,-500.0,0.00020146,2]
[348397099,1736505032198,-500.0,0.00020146,2]
[348397101,1736505032209,-500.0,0.00020146,2]
[348397103,1736505032219,-175.52998255,0.00020146,2]
[348397105,1736505032230,-455.1913184,0.00020146,2]
[348397107,1736505032241,-21400.1779195,0.00020147,2]
[348397110,1736505032252,-212.98541074,0.00021436,2]
[348397112,1736505032264,-734.6217117,0.00021452,2]
[348397114,1736505032277,-157.0,0.00021537,2]
[348397116,1736505032288,-157.0,0.00021537,2]
[348397132,1736505032425,-157.0,0.00021537,2]
[348397134,1736505032435,-157.0,0.00021537,2]
[348397136,1736505032445,-157.0,0.00021537,2]
[348397138,1736505032455,-157.0,0.00021537,2]
[348397140,1736505032464,-157.0,0.00021537,2]
[348397142,1736505032474,-157.0,0.00021537,2]
[348397144,1736505032484,-157.0,0.00021537,2]
[348397146,1736505032493,-157.0,0.00021537,2]
[348397148,1736505032502,-157.0,0.00021537,2]
[348397150,1736505032511,-157.0,0.00021537,2]
[348397152,1736505032521,-157.0,0.00021537,2]
[348397154,1736505032530,-157.0,0.00021537,2]
[348397156,1736505032539,-157.0,0.00021537,2]
[348397158,1736505032549,-157.0,0.00021537,2]
[348397160,1736505032558,-157.0,0.00021537,2]
[348397162,1736505032567,-157.0,0.00021537,2]
[348397164,1736505032577,-157.0,0.00021537,2]
[348397166,1736505032586,-157.0,0.00021537,2]
[348397168,1736505032597,-157.0,0.00021537,2]
[348397170,1736505032607,-157.0,0.00021537,2]
[348397172,1736505032616,-157.0,0.00021537,2]
[348397175,1736505032626,-157.0,0.00021537,2]
[348397177,1736505032635,-157.0,0.00021537,2]
[348397178,1736505032644,-157.0,0.00021537,2]
[348397180,1736505032654,-157.0,0.00021537,2]
[348397182,1736505032663,-157.0,0.00021537,2]
[348397184,1736505032672,-157.0,0.00021537,2]
[348397186,1736505032683,-157.0,0.00021537,2]
[348397188,1736505032692,-157.0,0.00021537,2]
[348397190,1736505032701,-157.0,0.00021537,2]
[348397192,1736505032711,-157.0,0.00021537,2]
[348397194,1736505032720,-157.0,0.00021537,2]
[348397196,1736505032730,-157.0,0.00021537,2]
[348397198,1736505032739,-157.0,0.00021537,2]
[348397200,1736505032748,-157.0,0.00021537,2]
[348397202,1736505032758,-191.0,0.00021537,2]
[348397204,1736505032767,-157.0,0.00021545,2]
[348397206,1736505032777,-157.0,0.00021545,2]
[348397208,1736505032788,-157.0,0.00021545,2]
[348397210,1736505032797,-157.0,0.00021545,2]
[348397213,1736505032808,-157.0,0.00021545,2]
[348397214,1736505032818,-157.0,0.00021545,2]
[348397217,1736505032828,-157.0,0.00021545,2]
[348397219,1736505032838,-157.0,0.00021545,2]
[348397221,1736505032848,-157.0,0.00021545,2]
[348397222,1736505032857,-157.0,0.00021545,2]
[348397224,1736505032867,-157.0,0.00021545,2]
[348397226,1736505032877,-157.0,0.00021545,2]
[348397228,1736505032886,-157.0,0.00021545,2]
[348397230,1736505032895,-157.0,0.00021545,2]
[348397232,1736505032904,-157.0,0.00021545,2]
[348397235,1736505032914,-157.0,0.00021545,2]
[348397236,1736505032924,-157.0,0.00021545,2]
[348397239,1736505032935,-157.0,0.00021545,2]
[348397240,1736505032945,-157.0,0.00021545,2]
[348397243,1736505032958,-157.0,0.00021545,2]
[348397244,1736505032969,-157.0,0.00021545,2]
[348397246,1736505032978,-157.0,0.00021545,2]
[348397248,1736505032988,-157.0,0.00021545,2]
[348397250,1736505032997,-157.0,0.00021545,2]
[348397252,1736505033007,-157.0,0.00021545,2]
[348397255,1736505033025,-157.0,0.00021545,2]
[348397258,1736505033037,-157.0,0.00021545,2]
[348397260,1736505033046,-261.0,0.00021545,2]
[348397262,1736505033056,-212.98541072,0.00021701,2]
[348397264,1736505033066,-391.85122771,0.00021717,2]
[348397266,1736505033076,-306.9053864,0.00021726,2]
[348397268,1736505033086,-580.2772485,0.00021726,2]
[348397270,1736505033096,-153.0,0.00021726,2]
[348397272,1736505033106,-420.0,0.00021777,2]
[348397274,1736505033116,-2235.70931295,0.00021817,2]
[348397276,1736505033125,-3375.23353144,0.00021917,5]
[348397278,1736505033134,-1340.39372456,0.00021917,5]
[348397280,1736505033144,-151.0,0.00021917,2]
[348397282,1736505033154,-295.654956,0.00021917,2]
[348397284,1736505033164,-295.654956,0.00021917,2]
[348397286,1736505033174,-295.654956,0.00021917,2]
[348397288,1736505033185,-500.0,0.00021917,3]
[348397290,1736505033197,-488.04771099,0.00021917,3]
[348397292,1736505033207,-256.95411532,0.00021917,3]
[348397294,1736505033216,-151.0,0.00021917,2]
[348397296,1736505033226,-354.05553349,0.00021917,3]
[348397298,1736505033236,-505.29591645,0.00021917,3]
[348397300,1736505033247,-500.0,0.00021917,3]
[348397302,1736505033256,-500.0,0.00021917,3]
[348397304,1736505033266,-500.0,0.00021917,3]
[348397306,1736505033277,-500.0,0.00021917,3]
[348397308,1736505033287,-500.0,0.00021917,3]
[348397310,1736505033297,-500.0,0.00021917,3]
[348397312,1736505033306,-500.0,0.00021917,3]
[348397314,1736505033316,-500.0,0.00021917,3]
[348397316,1736505033325,-500.0,0.00021917,3]
[348397318,1736505033335,-474.37504838,0.00021917,3]
[348397320,1736505033343,-500.0,0.00021917,3]
[348397322,1736505033353,-500.0,0.00021917,3]
[348397324,1736505033362,-500.0,0.00021917,3]
[348397326,1736505033372,-578.96564318,0.00021917,3]
[348397328,1736505033380,-500.0,0.00021917,3]
[348397330,1736505033390,-500.0,0.00021917,3]
[348397332,1736505033399,-502.26161626,0.00021917,3]
[348397334,1736505033408,-286.86510457,0.00021917,3]
[348397335,1736505033418,-500.0,0.00021917,3]
[348397336,1736505033427,-500.0,0.00021917,3]
[348397337,1736505033437,-500.0,0.00021917,3]
[348397338,1736505033447,-500.0,0.00021917,3]
[348397339,1736505033456,-500.0,0.00021917,3]
[348397340,1736505033465,-500.0,0.00021917,3]
[348397341,1736505033475,-500.0,0.00021917,3]
[348397342,1736505033484,-647.58,0.00021917,3]
[348397343,1736505033494,-500.0,0.00021917,3]
[348397344,1736505033503,-500.0,0.00021917,3]
[348397345,1736505033512,-500.0,0.00021917,3]
[348397346,1736505033521,-500.0,0.00021917,3]
[348397347,1736505033531,-219.28,0.00021917,3]
[348397348,1736505033540,-514.48394174,0.00021917,3]
[348397349,1736505033549,-151.0,0.00021917,2]
[348397350,1736505033559,-501.57153412,0.00021917,3]
[348397351,1736505033568,-227.433752,0.00021917,2]
[348397352,1736505033577,-500.0,0.00021917,3]
[348397353,1736505033587,-501.95694802,0.00021917,3]
[348397354,1736505033596,-500.0,0.00021917,3]
[348397355,1736505033606,-501.63315266,0.00021917,3]
[348397356,1736505033615,-501.21989446,0.00021917,3]
[348397357,1736505033625,-501.12721595,0.00021917,3]
[348397358,1736505033634,-503.39223422,0.00021917,3]
[348397359,1736505033642,-500.94472412,0.00021917,3]
[348397361,1736505033652,-502.2598158,0.00021917,3]
[348397363,1736505033661,-500.0,0.00021917,3]
[348397365,1736505033671,-501.44552206,0.00021917,3]
[348397367,1736505033681,-501.64933079,0.00021917,3]
[348397369,1736505033691,-500.0,0.00021917,3]
[348397370,1736505033700,-502.52887044,0.00021917,3]
[348397371,1736505033710,-500.0,0.00021917,3]
[348397372,1736505033720,-504.36405121,0.00021917,3]
[348397373,1736505033729,-500.0,0.00021917,3]
[348397374,1736505033738,-500.45787491,0.00021917,3]
[348397375,1736505033747,-502.4313428,0.00021917,3]
[348397376,1736505033756,-505.16599312,0.00021917,3]
[348397377,1736505033766,-500.0,0.00021917,3]
[348397378,1736505033776,-500.47351458,0.00021917,3]
[348397379,1736505033786,-501.44349358,0.00021917,3]
[348397380,1736505033796,-500.0,0.00021917,3]
[348397381,1736505033806,-501.2669777,0.00021917,3]
[348397382,1736505033816,-500.0,0.00021917,3]
[348397383,1736505033825,-500.0,0.00021917,3]
[348397384,1736505033834,-500.0,0.00021917,3]
[348397385,1736505033843,-500.0,0.00021917,3]
[348397386,1736505033852,-151.0,0.00021917,2]
[348397387,1736505033864,-500.0,0.00021917,3]
[348397388,1736505033874,-503.71390973,0.00021917,3]
[348397389,1736505033884,-589.58,0.00021917,3]
[348397390,1736505033894,-500.0,0.00021917,3]
[348397391,1736505033903,-500.0,0.00021917,3]
[348397392,1736505033913,-502.09388987,0.00021917,3]
[348397393,1736505033923,-500.0,0.00021917,3]
[348397394,1736505033933,-501.60031261,0.00021917,3]
[348397395,1736505033943,-501.70089586,0.00021917,3]
[348397396,1736505033953,-501.6292225,0.00021917,3]
[348397397,1736505033963,-501.27183752,0.00021917,3]
[348397398,1736505033973,-500.29836646,0.00021917,3]
[348397399,1736505033983,-504.37626092,0.00021917,3]
[348397400,1736505033992,-503.32645466,0.00021917,3]
[348397401,1736505034002,-500.0,0.00021917,3]
[348397402,1736505034012,-502.51571468,0.00021917,3]
[348397403,1736505034021,-504.2330632,0.00021917,3]
[348397404,1736505034031,-500.0,0.00021917,3]
[348397405,1736505034040,-503.62013923,0.00021917,3]
[348397406,1736505034050,-500.0,0.00021917,3]
[348397407,1736505034060,-500.5477994,0.00021917,3]
[348397408,1736505034069,-501.7162901,0.00021917,3]
[348397409,1736505034078,-501.37311103,0.00021917,3]
[348397410,1736505034088,-501.56753529,0.00021917,3]
[348397411,1736505034097,-500.97522878,0.00021917,3]
[348397412,1736505034107,-503.64474337,0.00021917,3]
[348397413,1736505034117,-501.58762252,0.00021917,3]
[348397414,1736505034127,-500.93488029,0.00021917,3]
[348397415,1736505034137,-505.85517732,0.00021917,3]
[348397416,1736505034147,-501.23035297,0.00021917,3]
[348397417,1736505034156,-505.18458523,0.00021917,3]
[348397418,1736505034166,-500.0,0.00021917,3]
[348397419,1736505034175,-560.55606311,0.00021917,3]
[348397420,1736505034185,-501.19948465,0.00021917,3]
[348397421,1736505034197,-500.0,0.00021917,3]
[348397422,1736505034207,-500.0,0.00021917,3]
[348397423,1736505034216,-500.90799772,0.00021917,3]
[348397424,1736505034226,-500.0,0.00021917,3]
[348397425,1736505034236,-500.0,0.00021917,3]
[348397426,1736505034245,-500.0,0.00021917,3]
[348397427,1736505034255,-500.0,0.00021917,3]
[348397428,1736505034264,-268.82252197,0.00021917,3]
[348397429,1736505034275,-413.60473926,0.00021917,3]
[348397430,1736505034284,-151.0,0.00021917,2]
[348397431,1736505034294,-151.0,0.00021917,2]
[348397432,1736505034303,-500.0,0.00021917,3]
[348397433,1736505034312,-500.0,0.00021917,3]
[348397434,1736505034321,-456.51,0.00021917,3]
[348397435,1736505034331,-500.0,0.00021917,3]
[348397436,1736505034340,-150.5247728,0.00021917,3]
[348397437,1736505034349,-500.0,0.00021917,3]
[348397438,1736505034359,-501.10061703,0.00021917,3]
[348397439,1736505034369,-500.0,0.00021917,3]
[348397440,1736505034378,-500.0,0.00021917,3]
[348397441,1736505034388,-500.0,0.00021917,3]
[348397442,1736505034397,-502.25891255,0.00021917,3]
[348397443,1736505034407,-503.41544306,0.00021917,3]
[348397444,1736505034416,-504.58186683,0.00021917,3]
[348397445,1736505034425,-503.4076912,0.00021917,3]
[348397446,1736505034436,-356.38326123,0.00021917,3]
[348397447,1736505034446,-153.240517,0.00021917,2]
[348397448,1736505034455,-500.0,0.00021917,3]
[348397449,1736505034465,-500.0,0.00021917,3]
[348397450,1736505034475,-500.0,0.00021917,3]
[348397451,1736505034484,-500.0,0.00021917,3]
[348397452,1736505034494,-500.0,0.00021917,3]
[348397453,1736505034503,-500.0,0.00021917,3]
[348397454,1736505034513,-500.0,0.00021917,3]
[348397455,1736505034524,-500.0,0.00021917,3]
[348397456,1736505034533,-505.17893156,0.00021917,3]
[348397457,1736505034542,-500.0,0.00021917,3]
[348397458,1736505034552,-503.53312682,0.00021917,3]
[348397459,1736505034561,-501.83930584,0.00021917,3]
[348397460,1736505034571,-502.88827148,0.00021917,3]
[348397461,1736505034583,-500.0,0.00021917,3]
[348397462,1736505034592,-500.0,0.00021917,3]
[348397463,1736505034602,-500.0,0.00021917,3]
[348397464,1736505034611,-500.0,0.00021917,3]
[348397465,1736505034620,-500.0,0.00021917,3]
[348397466,1736505034629,-502.62623451,0.00021917,3]
[348397467,1736505034639,-500.0,0.00021917,3]
[348397468,1736505034648,-500.0,0.00021917,3]
[348397469,1736505034657,-506.29419089,0.00021917,3]
[348397470,1736505034667,-500.0,0.00021917,3]
[348397471,1736505034677,-500.0,0.00021917,3]
[348397472,1736505034687,-244.95630785,0.00021917,3]
[348397473,1736505034697,-500.0,0.00021917,3]
[348397474,1736505034707,-500.0,0.00021917,3]
[348397475,1736505034717,-500.0,0.00021917,3]
[348397476,1736505034727,-500.0,0.00021917,3]
[348397477,1736505034736,-505.86872335,0.00021917,3]
[348397478,1736505034746,-500.0,0.00021917,3]
[348397479,1736505034838,-500.0,0.00021917,3]
[348397480,1736505034857,-502.15739291,0.00021917,3]
[348397481,1736505034867,-500.0,0.00021917,3]
[348397482,1736505034879,-151.0,0.00021917,2]
[348397483,1736505034888,-500.0,0.00021917,3]
[348397484,1736505034897,-151.0,0.00021917,2]
[348397485,1736505034907,-500.0,0.00021917,3]
[348397486,1736505034917,-501.02998495,0.00021917,3]
[348397487,1736505034928,-503.41154496,0.00021917,3]
[348397488,1736505034938,-500.0,0.00021917,3]
[348397489,1736505034947,-151.0,0.00021917,2]
[348397490,1736505034957,-151.0,0.00021917,2]
[348397491,1736505034967,-500.0,0.00021917,3]
[348397492,1736505034978,-151.0,0.00021917,2]
[348397493,1736505034987,-151.0,0.00021917,2]
[348397494,1736505034996,-1906.53,0.00021917,3]
[348397495,1736505035006,-501.68754078,0.00021917,3]
[348397496,1736505035015,-501.95601776,0.00021917,3]
[348397497,1736505035024,-504.90542848,0.00021917,3]
[348397498,1736505035034,-502.58085476,0.00021917,3]
[348397499,1736505035043,-500.0,0.00021917,3]
[348397500,1736505035053,-500.0,0.00021917,3]
[348397501,1736505035062,-500.0,0.00021917,3]
[348397502,1736505035073,-500.0,0.00021917,3]
[348397503,1736505035083,-150.24,0.00021917,3]
[348397504,1736505035092,-501.11897332,0.00021917,3]
[348397505,1736505035102,-509.1483706,0.00021917,3]
[348397506,1736505035113,-150.24,0.00021917,3]
[348397507,1736505035122,-500.0,0.00021917,3]
[348397508,1736505035132,-500.0,0.00021917,3]
[348397509,1736505035143,-151.63164511,0.00021917,3]
[348397510,1736505035152,-500.0,0.00021917,3]
[348397511,1736505035161,-500.0,0.00021917,3]
[348397512,1736505035172,-502.47658975,0.00021917,3]
[348397513,1736505035188,-500.0,0.00021917,3]
[348397514,1736505035206,-500.0,0.00021917,3]
[348397515,1736505035217,-500.0,0.00021917,3]
[348397516,1736505035228,-500.0,0.00021917,3]
[348397517,1736505035239,-500.0,0.00021917,3]
[348397518,1736505035249,-500.0,0.00021917,3]
[348397519,1736505035259,-503.12677182,0.00021917,3]
[348397520,1736505035270,-500.0,0.00021917,3]
[348397521,1736505035282,-500.0,0.00021917,3]
[348397522,1736505035291,-500.0,0.00021917,3]
[348397523,1736505035301,-500.88505132,0.00021917,3]
[348397524,1736505035311,-500.0,0.00021917,3]
[348397525,1736505035321,-486.63368931,0.00021917,3]
[348397526,1736505035331,-500.0,0.00021917,3]
[348397527,1736505035341,-500.0,0.00021917,3]
[348397528,1736505035352,-221.12502403,0.00021917,3]
[348397529,1736505035363,-348.39792012,0.00021917,3]
[348397530,1736505035374,-500.0,0.00021917,3]
[348397531,1736505035384,-500.0,0.00021917,3]
[348397532,1736505035393,-500.0,0.00021917,3]
[348397533,1736505035403,-500.0,0.00021917,3]
[348397534,1736505035413,-500.0,0.00021917,3]
[348397535,1736505035423,-500.0,0.00021917,3]
[348397536,1736505035434,-500.0,0.00021917,3]
[348397537,1736505035444,-151.0,0.00021917,2]
[348397538,1736505035455,-151.0,0.00021917,2]
[348397539,1736505035466,-500.0,0.00021917,3]
[348397540,1736505035477,-500.0,0.00021917,2]
[348397541,1736505035487,-500.0,0.00021917,3]
[348397542,1736505035497,-504.68980667,0.00021917,3]
[348397543,1736505035506,-353.08170165,0.00021917,3]
[348397544,1736505035517,-500.0,0.00021917,3]
[348397545,1736505035527,-500.0,0.00021917,2]
[348397546,1736505035537,-500.0,0.00021917,3]
[348397547,1736505035547,-502.85087274,0.00021917,3]
[348397548,1736505035556,-500.0,0.00021917,3]
[348397549,1736505035566,-500.0,0.00021917,3]
[348397550,1736505035576,-500.0,0.00021917,3]
[348397551,1736505035586,-500.0,0.00021917,3]
[348397552,1736505035596,-500.0,0.00021917,3]
[348397553,1736505035606,-518.30595165,0.00021917,3]
[348397554,1736505035616,-500.0,0.00021917,3]
[348397555,1736505035626,-500.0,0.00021917,3]
[348397556,1736505035638,-500.0,0.00021917,3]
[348397557,1736505035647,-500.0,0.00021917,3]
[348397558,1736505035657,-500.0,0.00021917,3]
[348397559,1736505035667,-500.0,0.00021917,3]
[348397560,1736505035676,-500.0,0.00021917,3]
[348397561,1736505035686,-500.0,0.00021917,3]
[348397562,1736505035695,-500.0,0.00021917,3]
[348397563,1736505035705,-500.0,0.00021917,3]
[348397564,1736505035714,-591.46,0.00021917,3]
[348397565,1736505035724,-500.0,0.00021917,3]
[348397566,1736505035734,-579.54435995,0.00021917,3]
[348397567,1736505035744,-500.0,0.00021917,3]
[348397568,1736505035755,-500.0,0.00021917,3]
[348397569,1736505035765,-1063.73,0.00021917,3]
[348397570,1736505035775,-500.0,0.00021917,3]
[348397571,1736505035784,-500.0,0.00021917,3]